bitfinex-derivatives/quotes_ETHF0:USTF0_20250102
["timestamp","ask_amount","ask_price","bid_price","bid_amount"]
[1735814721552,0.28853,3470.1,3469.9,0.28854]
[1735814722357,1.72541617,3470.2,3469.6,0.453]
[1735814722561,1.17063,3470.2,3469.9,0.28854]
[1735814723062,10.24394608,3470.2,3469.9,0.28854]
[1735814723254,0.55478617,3470.1,3469.9,0.28854]
[1735814723860,0.55478617,3470.1,3469.5,3.2078]
[1735814724060,0.28857,3469.7,3469.3,0.28859]
[1735814724259,0.4212,3469.6,3469.5,0.28858]
[1735814724465,0.55478617,3469.8,3469.7,0.28856]
[1735814724669,1.43298617,3470.1,3469.6,0.4595]
[1735814724859,1.43298617,3470.1,3470.0,0.28854]
[1735814725760,0.97598617,3470.1,3470.0,0.28854]
[1735814726663,7.78690841,3470.1,3470.0,0.74064]
[1735814726865,7.78693749,3470.1,3470.0,0.74064]
[1735814728171,0.98016174,3470.1,3470.0,0.74064]
[1735814731571,6.6530605,3470.1,3470.0,0.74064]
[1735814734368,0.98016174,3470.1,3470.0,0.74064]
[1735814734960,0.4212,3470.1,3470.0,0.74064]
[1735814735364,0.97973044,3470.1,3470.0,0.74064]
[1735814735565,0.4212,3470.1,3470.0,0.74064]
[1735814736365,0.97978136,3470.1,3470.0,0.74064]
[1735814736569,1.44318136,3470.1,3470.0,0.74064]
[1735814740472,1.44318136,3470.1,3470.0,1.63907047]
[1735814741069,0.97978136,3470.1,3470.0,1.63907047]
[1735814741267,0.55858136,3470.1,3470.0,1.63907047]
[1735814741762,6.80677575,3470.2,3470.1,0.28853]
[1735814742072,4.96247575,3470.2,3470.1,0.72973]
[1735814742370,7.8364729,3470.4,3470.3,0.28851]
[1735814742572,7.8364729,3470.4,3470.3,4.39474047]
[1735814742768,7.34821811,3470.5,3470.4,0.28851]
[1735814742970,3.95796405,3470.6,3470.5,0.2885]
[1735814743166,5.67206757,3470.8,3470.5,1.79686094]
[1735814743366,0.4276,3471.6,3471.5,0.28841]
[1735814743571,0.4276,3471.6,3471.5,1.18684047]
[1735814744367,0.4276,3471.6,3471.5,0.28841]
[1735814758273,6.77420597,3472.7,3471.3,5.24974931]
[1735814758476,0.8967,3472.2,3472.1,2.33031931]
[1735814758674,5.67032991,3472.6,3472.5,0.28833]
[1735814760276,0.4476,3472.8,3472.7,0.28832]
[1735814760473,0.4476,3472.8,3472.7,2.33026931]
[1735814760875,5.67032991,3473.7,3473.4,0.28826]
[1735814760876,0.4539,3473.5,3473.4,0.28826]
[1735814761571,0.4539,3473.5,3473.4,0.13413111]
[1735814762580,0.4539,3473.5,3473.3,44.0078]
[1735814762781,0.4539,3473.5,3473.3,44.29606]
[1735814763282,0.4539,3473.5,3473.3,3.49606]
[1735814763577,0.4539,3473.5,3473.4,0.28826]
[1735814770181,0.4539,3473.5,3473.3,3.2078]
[1735814770390,0.72067,3473.3,3472.3,0.28834]
[1735814770587,5.24974931,3472.8,3472.2,3.49615]
[1735814770787,1.85602248,3472.7,3471.8,3.2078]
[1735814770985,1.85602248,3472.7,3471.8,3.92878]
[1735814771285,2.14434248,3472.7,3471.9,1.158]
[1735814771487,1.85602248,3472.7,3472.3,0.28834]
[1735814771986,1.85602248,3472.7,3471.9,1.158]
[1735814772183,2.14434248,3472.7,3471.9,1.158]
[1735814772385,2.14434248,3472.7,3472.1,0.28836]
[1735814772386,0.28833,3472.5,3472.1,0.28836]
[1735814772585,1.85602248,3472.7,3471.9,1.158]
[1735814773189,2.14434248,3472.7,3472.3,0.28834]
[1735814773384,1.85602248,3472.7,3472.3,0.28834]
[1735814774098,1.85602248,3472.7,3472.4,0.28834]
[1735814774397,2.14434248,3472.7,3472.3,0.28835]
[1735814776190,0.28834,3472.5,3472.1,0.28836]
[1735814776399,0.28834,3472.5,3471.8,4.3658]
[1735814776400,0.28835,3472.4,3471.8,3.2078]
[1735814776995,2.33028931,3472.5,3472.1,0.28836]
[1735814777586,0.28835,3472.3,3471.9,0.28838]
[1735814777783,0.28836,3472.2,3471.9,0.28838]
[1735814777987,3.49615,3472.3,3472.0,0.28837]
[1735814778288,0.55432248,3472.2,3472.1,0.28837]
[1735814778492,3.2078,3472.3,3472.2,0.28836]
[1735814778889,0.555581,3472.6,3472.2,0.28836]
[1735814779187,0.555581,3472.6,3471.8,3.92878]
[1735814779188,0.55555483,3472.6,3472.3,0.28834]
[1735814779388,0.55555483,3472.6,3472.4,0.28834]
[1735814779585,0.84388483,3472.6,3472.3,0.28834]
[1735814779797,0.84388483,3472.6,3472.5,0.28833]
[1735814779798,0.55555483,3472.6,3472.5,0.28833]
[1735814780596,0.55555483,3472.6,3472.2,0.28835]
[1735814780791,2.33028931,3472.4,3472.2,0.28835]
[1735814781095,0.28835,3472.3,3472.1,0.28836]
[1735814782207,2.33029931,3472.4,3472.1,0.28836]
[1735814782407,2.33029931,3472.4,3472.2,0.28836]
[1735814782603,2.04194931,3472.4,3472.3,0.28835]
[1735814782903,0.84388483,3472.6,3472.3,0.28834]
[1735814783197,0.84388483,3472.6,3471.8,3.92878]
[1735814783403,0.84388483,3472.6,3472.4,0.28834]
[1735814783903,0.84388483,3472.6,3471.8,3.2078]
[1735814784103,0.55555483,3472.6,3471.8,3.2078]
[1735814784299,2.33028931,3472.4,3472.2,0.28835]
[1735814785310,2.33028931,3472.4,3472.3,0.28835]
[1735814786307,0.84388483,3472.6,3471.9,0.28838]
[1735814787010,0.84388483,3472.6,3472.4,0.28834]
[1735814787210,0.55555483,3472.6,3472.4,0.28834]
[1735814787410,0.28833,3472.5,3472.4,0.28834]
[1735814788209,0.55555483,3472.6,3471.8,3.92877]
[1735814788409,0.84387483,3472.6,3472.5,0.28833]
[1735814788609,0.55555483,3472.6,3472.5,0.28833]
[1735814789910,4.5095,3472.7,3472.6,0.28832]
[1735814790210,5.06587327,3472.7,3472.6,0.28832]
[1735814791209,7.39614258,3472.7,3472.6,0.28832]
[1735814791411,7.10782258,3472.7,3472.6,0.28832]
[1735814791813,7.39614258,3472.7,3472.6,0.28832]
[1735814792706,4.18834258,3472.7,3472.6,0.28832]
[1735814794513,0.28835,3472.3,3471.9,0.28838]
[1735814794715,0.28835,3472.3,3472.2,0.28836]
[1735814795409,0.28835,3472.4,3472.2,0.28835]
[1735814795715,0.28835,3472.4,3472.1,0.28836]
[1735814796915,0.84471327,3472.5,3472.2,0.28835]
[1735814797113,6.51504318,3472.5,3472.2,0.28835]
[1735814797410,0.55637327,3472.4,3472.2,0.28835]
[1735814797816,0.28835,3472.3,3472.0,0.28837]
[1735814799205,0.55637327,3472.3,3471.8,3.2078]
[1735814799415,0.55637327,3472.3,3472.2,0.28836]
[1735814800312,0.55637327,3472.4,3471.8,3.2078]
[1735814800612,0.84472327,3472.4,3472.1,0.28836]
[1735814801011,6.51505318,3472.4,3472.1,0.28836]
[1735814801216,0.55637327,3472.3,3472.1,0.28836]
[1735814801614,0.84472327,3472.3,3472.0,0.28837]
[1735814801815,0.55637327,3472.3,3472.1,0.28836]
[1735814802315,0.55637327,3472.5,3472.1,0.28836]
[1735814802717,0.28834,3472.4,3472.1,0.28836]
[1735814803420,0.28834,3472.4,3471.8,3.2078]
[1735814803614,0.28834,3472.4,3472.2,0.28835]
[1735814804220,2.04194931,3472.3,3471.8,3.2078]
[1735814804520,0.28838,3472.0,3471.3,3.92889]
[1735814804712,0.8545,3471.9,3471.7,0.28839]
[1735814804911,0.55637327,3472.1,3471.3,5.24974931]
[1735814805116,0.55637327,3472.1,3472.0,0.28837]
[1735814808020,0.55637327,3472.1,3471.5,0.72103]
[1735814808322,0.55637327,3472.1,3471.3,5.24974931]
[1735814808523,0.55637327,3472.1,3472.0,0.28837]
[1735814812530,0.55637327,3472.1,3471.9,0.28838]
[1735814812831,0.84474327,3472.1,3471.7,0.28839]
[1735814813030,0.84474327,3472.1,3471.8,0.28839]
[1735814813739,6.51507318,3472.1,3471.8,0.28839]
[1735814814029,0.84474327,3472.0,3471.7,0.28839]
[1735814814234,0.4407,3471.9,3471.8,0.28839]
[1735814816834,6.11294387,3471.9,3471.8,0.28839]
[1735814817133,6.66931714,3471.9,3471.8,0.28839]
[1735814824741,6.66931714,3471.9,3471.7,0.28839]
[1735814825036,1.00037327,3471.8,3471.7,0.28839]
[1735814825245,0.444,3471.8,3471.7,0.28839]
[1735814832243,1.00037327,3471.8,3471.7,0.28839]
[1735814833344,0.444,3471.8,3471.7,0.28839]
[1735814838241,1.00037327,3471.8,3471.7,0.28839]
[1735814840046,0.444,3471.8,3471.7,0.28839]
[1735814840249,0.4407,3471.9,3471.7,0.89735778]
[1735814840449,0.4407,3471.9,3471.8,0.28839]
[1735814842148,0.99707327,3471.9,3471.8,0.28839]
[1735814847254,1.89443105,3471.9,3471.8,0.28839]
[1735814848750,1.33805778,3471.9,3471.8,0.28839]
[1735814848946,1.33805778,3471.9,3471.5,3.2078]
[1735814849151,0.89735778,3471.6,3471.4,4.81883361]
[1735814849358,0.4304,3471.5,3471.3,6.79562042]
[1735814849554,0.4304,3471.5,3471.4,0.28842]
[1735814849555,0.8734,3471.5,3471.4,0.28842]
[1735814851448,0.8734,3471.5,3471.1,3.2078]
[1735814851758,0.89735778,3471.2,3470.8,4.53230955]
[1735814851958,4.39361778,3470.9,3470.8,3.83650955]
[1735814852259,4.05263327,3470.9,3470.8,3.83650955]
[1735814852557,4.05263327,3470.9,3470.6,0.28849]
[1735814852757,0.28848,3470.7,3470.4,1.157]
[1735814852952,0.28848,3470.7,3470.5,0.28849]
[1735814853153,0.55637327,3470.8,3470.3,0.28851]
[1735814853348,0.28849,3470.7,3470.4,0.2885]
[1735814853551,5.95829978,3470.7,3470.4,0.2885]
[1735814853757,0.55637327,3470.6,3470.4,0.2885]
[1735814853957,0.4588,3470.5,3470.4,0.2885]
[1735814854451,0.4588,3470.5,3470.2,0.28852]
[1735814854647,0.4292,3470.4,3470.2,0.28852]
[1735814855053,0.4306,3470.3,3469.7,3.632]
[1735814855255,0.4306,3470.3,3470.0,0.28854]
[1735814855455,0.4306,3470.3,3469.8,0.28856]
[1735814855456,0.28853,3470.2,3469.8,0.28856]
[1735814856157,0.98697327,3470.3,3469.8,0.28856]
[1735814856359,0.98697327,3470.3,3469.9,0.28854]
[1735814856360,1.27549327,3470.3,3469.9,0.28854]
[1735814857057,0.98697327,3470.3,3470.0,0.28854]
[1735814857755,1.27549327,3470.3,3470.0,0.28854]
[1735814858959,0.28853,3470.2,3469.8,0.28855]
[1735814859357,0.98697327,3470.3,3469.7,3.2078]
[1735814859558,1.27549327,3470.3,3469.7,3.2078]
[1735814859859,1.27549327,3470.3,3469.9,0.28854]
[1735814860362,0.28852,3470.2,3469.9,0.28854]
[1735814860564,0.28852,3470.2,3469.7,3.2078]
[1735814860763,0.28852,3470.2,3469.9,0.28855]
[1735814861258,0.28852,3470.2,3469.7,3.2078]
[1735814861462,0.98697327,3470.3,3469.7,3.2078]
[1735814861759,0.98697327,3470.3,3469.7,3.49636]
[1735814861760,0.28854,3470.0,3469.7,3.49636]
[1735814862359,0.28854,3470.0,3469.7,3.2078]
[1735814862857,0.28854,3470.0,3469.7,3.49636]
[1735814863055,0.28854,3470.0,3469.7,3.2078]
[1735814863558,0.4266,3469.9,3469.7,3.2078]
[1735814863758,0.4452,3469.8,3469.7,3.2078]
[1735814869056,0.4452,3469.8,3469.5,0.28858]
[1735814870159,0.4452,3469.8,3469.4,0.2888]
[1735814870357,0.4452,3469.8,3469.4,0.57738]
[1735814871968,0.4452,3469.8,3469.5,0.28858]
[1735814872160,0.4452,3469.8,3469.4,0.28859]
[1735814872559,0.4488,3469.7,3469.3,3.49639]
[1735814872764,0.4488,3469.7,3469.3,3.2078]
[1735814873360,0.4488,3469.7,3469.3,3.49639]
[1735814873966,0.73736,3469.7,3469.3,3.49639]
[1735814874270,0.4488,3469.7,3469.3,3.2078]
[1735814874562,0.73737,3469.7,3469.3,3.49639]
[1735814876262,0.28857,3469.6,3469.3,3.49639]
[1735814876467,0.73737,3469.7,3469.3,3.49639]
[1735814877067,0.4488,3469.7,3469.4,0.28858]
[1735814877472,0.73376,3469.8,3469.4,0.28858]
[1735814878061,0.73376,3469.8,3469.3,3.2078]
[1735814878272,0.73376,3469.8,3469.5,0.28858]
[1735814879477,0.4452,3469.8,3469.5,0.28858]
[1735814879672,0.4452,3469.8,3469.6,0.28857]
[1735814880176,0.4452,3469.8,3469.3,3.2078]
[1735814880375,0.4289,3470.1,3469.6,0.28856]
[1735814880376,0.28855,3470.0,3469.6,0.28856]
[1735814880674,0.57579299,3470.3,3469.7,2.04367528]
[1735814880975,0.86431299,3470.3,3469.9,0.28854]
[1735814881164,0.4328,3470.2,3469.8,0.7071]
[1735814881374,0.28854,3470.0,3469.6,0.28857]
[1735814881574,0.863,3470.1,3469.6,0.28857]
[1735814881878,1.72733299,3470.1,3469.7,0.28856]
[1735814882266,1.43879299,3470.1,3469.5,0.289]
[1735814882470,0.4328,3470.2,3470.1,0.28853]
[1735814882671,0.4328,3470.2,3470.0,0.28854]
[1735814882876,0.4328,3470.2,3470.1,0.28853]
[1735814883878,0.57579299,3470.3,3470.1,0.28852]
[1735814884275,0.57579299,3470.3,3470.2,0.28852]
[1735814884875,0.57579299,3470.9,3470.2,0.72131]
[1735814885078,0.57579299,3470.9,3470.3,0.289]
[1735814885269,0.57579299,3470.9,3470.8,0.28847]
[1735814885474,0.57579299,3470.9,3470.7,0.28848]
[1735814886268,0.28847,3470.8,3470.4,0.2885]
[1735814886474,0.86426299,3470.9,3470.5,0.2885]
[1735814886874,0.28848,3470.8,3470.3,0.28851]
[1735814887076,0.28848,3470.8,3470.2,0.4305]
[1735814887383,0.86426299,3470.9,3470.5,0.28849]
[1735814887677,0.57579299,3470.9,3470.8,0.28847]
[1735814888275,0.57579299,3470.9,3470.7,0.28848]
[1735814888476,0.57579299,3470.9,3470.3,0.72129]
[1735814888680,1.2988,3471.1,3470.3,0.72129]
[1735814888681,1.2988,3471.1,3471.0,0.28846]
[1735814888977,8.87760978,3471.4,3470.6,2.76490528]
[1735814888978,0.57255978,3471.3,3470.6,2.76490528]
[1735814889178,0.57255978,3471.3,3471.2,0.28844]
[1735814890172,5.66980978,3471.7,3470.9,5.25147528]
[1735814890379,5.66980978,3471.7,3471.6,0.28841]
[1735814890675,3.2078,3471.8,3471.7,0.2884]
[1735814890980,3.2078,3471.8,3471.4,0.72107]
[1735814890981,5.66980978,3471.9,3471.5,3.2078]
[1735814891181,5.66980978,3471.9,3471.8,0.28839]
[1735814891681,0.8857,3472.1,3472.0,0.28837]
[1735814896081,0.8857,3472.1,3471.9,0.28838]
[1735814896675,0.8857,3472.1,3472.0,0.28837]
[1735814896879,0.8857,3472.1,3471.5,3.9235]
[1735814896880,0.28839,3471.9,3471.5,3.49621]
[1735814897186,2.04367528,3471.8,3471.6,0.2884]
[1735814897881,2.04367528,3471.8,3471.4,1.157]
[1735814897882,5.53987528,3471.8,3471.4,1.44542]
[1735814898076,0.57101574,3471.7,3471.4,1.44542]
[1735814898278,0.4522,3471.6,3471.4,0.28842]
[1735814898580,0.4522,3471.6,3471.1,1.156]
[1735814898880,0.4263,3471.5,3471.3,0.28843]
[1735814899089,0.4455,3471.4,3471.2,0.28844]
[1735814900187,1.01651574,3471.4,3471.2,0.28844]
[1735814900383,0.4455,3471.4,3471.0,4.3638]
[1735814900589,0.4455,3471.4,3471.2,0.28843]
[1735814902576,0.4455,3471.4,3471.0,4.3638]
[1735814902782,0.4455,3471.4,3471.3,0.28843]
[1735814903782,5.66980978,3471.5,3471.2,2.04367528]
[1735814903983,5.66980978,3471.5,3471.4,3.49622]
[1735814904490,5.66980978,3471.5,3471.4,44.29622]
[1735814905088,6.55250978,3472.0,3471.9,0.28838]
[1735814906187,0.8827,3472.0,3471.9,0.28838]
[1735814906384,1.45280942,3472.0,3471.9,0.28838]
[1735814907192,0.8827,3472.0,3471.9,0.28838]
[1735814909996,0.8827,3472.0,3471.8,0.28839]
[1735814910294,0.8827,3472.0,3471.6,0.2884]
[1735814910487,0.28838,3471.9,3471.5,0.28841]
[1735814910894,0.28838,3471.9,3471.4,3.2078]
[1735814911097,1.74118942,3472.0,3471.6,0.2884]
[1735814911708,3.2078,3471.7,3470.9,3.2078]
[1735814911994,0.28844,3471.3,3471.0,0.28846]
[1735814912295,0.4318,3471.2,3471.0,0.28846]
[1735814912494,2.93517528,3471.2,3470.5,3.2078]
[1735814912797,2.93517528,3471.2,3470.8,0.28847]
[1735814912798,3.7937247,3471.2,3470.8,0.28847]
[1735814912992,0.57010942,3471.1,3470.8,0.28847]
[1735814913190,0.57010942,3471.1,3470.5,3.2078]
[1735814913496,1.46160942,3471.2,3471.1,0.28845]
[1735814913690,1.46160942,3471.2,3470.6,0.46]
[1735814913995,1.46160942,3471.2,3471.0,0.28845]
[1735814914190,1.46160942,3471.2,3471.1,0.28845]
[1735814914385,0.8915,3471.2,3471.1,0.28845]
[1735814915394,5.66980978,3471.4,3471.3,0.28843]
[1735814915699,6.2419414,3471.4,3471.3,0.28843]
[1735814916099,0.57213162,3471.4,3471.3,0.28843]
[1735814916299,0.4535,3471.5,3471.4,0.28842]
[1735814916996,0.4535,3471.5,3471.0,1.87715]
[1735814916997,0.4535,3471.5,3471.3,0.28843]
[1735814917192,0.4535,3471.5,3471.0,1.156]
[1735814917397,0.4535,3471.5,3471.3,0.28843]
[1735814917793,0.4535,3471.5,3471.2,0.28844]
[1735814917991,6.41172978,3471.5,3471.1,0.28844]
[1735814918188,2.6158069,3471.4,3470.9,3.2078]
[1735814918691,2.9042369,3471.4,3471.0,0.28845]
[1735814918891,5.66980978,3471.3,3471.0,0.28845]
[1735814919097,0.57213162,3471.2,3471.0,0.28845]
[1735814919299,0.57213162,3471.2,3471.1,0.28845]
[1735814920188,0.57213162,3471.3,3471.1,0.28845]
[1735814920394,0.57213162,3471.3,3470.9,3.2078]
[1735814920597,0.57213162,3471.3,3471.1,0.28844]
[1735814920893,0.57213162,3471.3,3471.2,0.28844]
[1735814921295,0.4535,3471.5,3471.3,0.28843]
[1735814921493,0.4535,3471.5,3471.2,0.28844]
[1735814921694,0.4535,3471.5,3471.4,0.28842]
[1735814922091,6.10423383,3471.5,3471.4,0.28842]
[1735814922399,6.67636545,3471.5,3471.3,0.28843]
[1735814922603,0.57213162,3471.4,3471.3,0.28843]
[1735814922995,6.22286545,3471.4,3471.3,0.28843]
[1735814925695,0.57213162,3471.4,3471.3,0.28843]
[1735814925895,0.57213162,3471.6,3471.5,0.28841]
[1735814927699,0.57213162,3471.6,3471.4,0.28842]
[1735814928009,0.4416,3471.5,3471.4,0.28842]
[1735814928308,0.4416,3471.5,3470.9,3.92896]
[1735814928503,0.73002,3471.5,3470.9,4.3638]
[1735814928702,0.73002,3471.5,3471.2,0.28844]
[1735814928902,6.38075383,3471.5,3471.2,0.28844]
[1735814929104,0.57213162,3471.4,3471.1,0.28844]
[1735814929403,0.4438,3471.3,3471.2,0.28844]
[1735814931405,0.4438,3471.3,3471.1,0.28844]
[1735814931708,0.4438,3471.3,3470.9,3.2078]
[1735814931902,0.4438,3471.3,3471.0,0.28845]
[1735814932099,0.4438,3471.3,3471.1,0.28844]
[1735814932607,0.4438,3471.3,3471.2,0.28844]
[1735814933110,0.4438,3471.3,3470.9,3.2078]
[1735814933310,0.4438,3471.3,3471.1,0.28844]
[1735814933499,0.4417,3471.2,3471.1,0.28844]
[1735814936419,0.4417,3471.2,3470.8,3.2078]
[1735814936617,0.28845,3471.1,3470.7,0.28847]
[1735814936916,2.04367528,3471.1,3470.7,0.28847]
[1735814937318,0.28847,3470.9,3470.3,0.28851]
[1735814937615,0.4357,3470.8,3470.7,0.28848]
[1735814938718,1.01383162,3471.2,3470.9,0.28846]
[1735814939016,1.46423162,3471.2,3471.1,0.28845]
[1735814939215,1.46423162,3471.2,3471.0,0.28846]
[1735814940217,1.46423162,3471.2,3470.6,0.289]
[1735814940518,0.57213162,3471.2,3471.1,0.28845]
[1735814942008,0.57213162,3471.3,3471.2,0.28844]
[1735814942509,0.57213162,3471.3,3471.1,0.28844]
[1735814942705,0.57213162,3471.3,3471.2,0.28844]
[1735814943317,0.57213162,3471.3,3471.1,0.28844]
[1735814943918,0.57213162,3471.3,3471.2,0.28844]
[1735814946217,0.57213162,3471.3,3471.0,0.28846]
[1735814946612,6.23877087,3471.3,3471.0,0.28846]
[1735814946816,0.57213162,3471.2,3471.0,0.28846]
[1735814947018,0.57213162,3471.2,3471.1,0.28845]
[1735814948010,2.6158069,3471.4,3471.1,0.28845]
[1735814948211,0.28846,3471.0,3470.8,3.2078]
[1735814948405,1.3672,3470.9,3470.8,3.2078]
[1735814948612,2.22779162,3470.9,3470.5,0.28849]
[1735814949215,1.93933162,3470.9,3470.4,3.2078]
[1735814949414,1.93933162,3470.9,3470.6,0.28848]
[1735814949614,1.93933162,3470.9,3470.8,0.28847]
[1735814949814,0.57213162,3471.6,3470.8,7.12765528]
[1735814950016,0.9088,3471.5,3471.4,0.28841]
[1735814951222,6.57412038,3471.5,3471.3,0.28842]
[1735814951417,0.57213162,3471.4,3471.3,0.28842]
[1735814952315,0.9088,3471.5,3470.9,0.7112]
[1735814952913,1.48093162,3471.5,3470.8,3.2078]
[1735814953119,3.2078,3471.2,3470.5,1.607]
[1735814953314,0.86058162,3471.1,3470.7,0.28848]
[1735814953514,1.30418162,3471.1,3470.7,0.28848]
[1735814953716,0.28846,3471.0,3470.6,0.28848]
[1735814953922,0.8553,3470.9,3470.6,0.28848]
[1735814954117,0.8553,3470.9,3470.5,1.155]
[1735814954317,0.8553,3470.9,3470.7,0.28847]
[1735814955721,0.8553,3470.9,3470.6,0.28847]
[1735814955920,0.8553,3470.9,3470.4,4.3628]
[1735814956122,8.7612385,3470.9,3470.4,3.2078]
[1735814956323,2.33214528,3470.7,3470.4,3.2078]
[1735814956519,0.28847,3470.6,3470.4,3.2078]
[1735814956723,0.4494,3470.6,3470.4,3.2078]
[1735814957427,0.4494,3470.6,3470.4,3.49629]
[1735814958129,0.4494,3470.6,3470.5,0.28848]
[1735814962219,6.11489677,3470.6,3470.5,0.28848]
[1735814962426,6.68702839,3470.6,3470.5,0.28848]
[1735814963727,0.28849,3470.5,3470.2,0.2885]
[1735814963936,2.04367528,3470.4,3470.2,0.2885]
[1735814964229,0.8631,3470.3,3470.2,0.2885]
[1735814964532,6.52859677,3470.3,3470.2,0.2885]
[1735814964727,7.10072839,3470.3,3470.2,0.2885]
[1735814965929,1.43523162,3470.3,3470.1,0.28851]
[1735814966121,1.43523162,3470.3,3469.9,3.2078]
[1735814966326,1.43523162,3470.3,3470.2,0.2885]
[1735814966723,1.43523162,3470.3,3469.9,3.2078]
[1735814966928,0.28851,3470.2,3470.0,0.28852]
[1735814967232,0.28851,3470.2,3469.9,3.2078]
[1735814967432,0.4606,3470.1,3470.0,0.28852]
[1735814969530,0.4606,3470.1,3469.9,0.28852]
[1735814969730,0.4606,3470.1,3469.9,3.49632]
[1735814973436,0.4606,3470.1,3469.9,3.2078]
[1735814974029,0.4606,3470.1,3469.9,3.49632]
[1735814974435,0.4606,3470.1,3469.9,3.2078]
[1735814974730,0.28852,3470.0,3469.9,3.2078]
[1735814974930,5.71207528,3470.1,3469.5,3.2078]
[1735814975133,2.04367528,3469.8,3469.5,3.2078]
[1735814975331,2.04367528,3469.8,3469.5,3.49636]
[1735814975332,0.8574,3469.7,3469.5,3.49636]
[1735814975535,1.42953162,3469.7,3469.5,3.49636]
[1735814975739,0.4519,3469.6,3469.5,3.49636]
[1735814976932,1.02413459,3469.6,3469.5,3.49636]
[1735814978038,6.68963136,3469.6,3469.5,3.49636]
[1735814978438,6.11739677,3469.6,3469.5,3.49636]
[1735814978741,0.4519,3469.6,3469.5,3.49636]
[1735814979940,1.02394253,3469.6,3469.5,3.49636]
[1735814981730,1.02394253,3469.6,3469.1,3.2078]
[1735814981937,0.28861,3468.9,3468.7,3.2078]
[1735814982137,2.95587528,3468.8,3468.7,0.28863]
[1735814982540,0.9122,3468.8,3468.7,0.28863]
[1735814983140,0.4607,3468.8,3468.7,0.28863]
[1735814983438,0.57204253,3469.0,3468.7,1.01021]
[1735814983645,0.57204253,3469.3,3468.7,1.87658]
[1735814983941,0.57204253,3469.3,3469.2,0.28859]
[1735814984645,0.4607,3469.5,3469.4,0.28857]
[1735814984947,0.4607,3469.5,3469.1,0.7482]
[1735814985146,0.4177,3469.4,3469.3,0.28858]
[1735814985437,0.4177,3469.4,3469.1,0.4599]
[1735814985643,0.4177,3469.4,3469.1,0.74849]
[1735814986340,0.4177,3469.4,3469.1,0.28859]
[1735814986647,0.4177,3469.4,3469.0,3.4964]
[1735814987646,0.4177,3469.4,3469.1,0.28859]
[1735814988348,0.4177,3469.4,3469.0,3.2078]
[1735814989047,0.4607,3469.5,3469.0,3.2078]
[1735814989244,0.4607,3469.5,3469.4,0.28857]
[1735814989748,0.4607,3469.5,3469.0,3.2078]
[1735814989942,0.4607,3469.5,3469.4,0.28857]
[1735814997052,1.03274253,3469.5,3469.4,0.28857]
[1735814998253,0.4607,3469.5,3469.4,0.28857]
[1735815001251,0.4607,3469.5,3469.3,0.28857]
[1735815001554,0.4227,3469.4,3469.3,0.28857]
[1735815004657,0.71128,3469.4,3469.2,3.2078]
[1735815005056,0.57204253,3469.5,3469.2,3.2078]
[1735815005355,0.57204253,3469.5,3469.4,0.28857]
[1735815005758,0.4447,3469.6,3469.4,0.28857]
[1735815006153,0.4447,3469.6,3469.5,0.28856]
[1735815006451,1.34355313,3469.6,3469.5,0.28856]
[1735815010058,1.91559566,3469.6,3469.5,0.28856]
[1735815012755,1.01674253,3469.6,3469.5,0.28856]
[1735815014558,1.91559566,3469.6,3469.5,0.28856]
[1735815015252,1.34355313,3469.6,3469.5,0.28856]
[1735815016163,0.4447,3469.6,3469.5,0.28856]
[1735815017358,6.11800321,3469.6,3469.5,0.28856]
[1735815017564,6.69004574,3469.6,3469.5,0.28856]
[1735815017963,5.67330321,3469.6,3469.5,0.28856]
[1735815018160,0.58141273,3469.6,3469.5,6.18741313]
[1735815018358,6.80038243,3470.0,3469.9,0.28853]
[1735815018663,6.80038243,3470.3,3470.2,0.2885]
[1735815018860,6.80038243,3470.3,3470.2,1.4435]
[1735815019265,6.80038243,3470.3,3470.2,6.4435]
[1735815019563,6.34735542,3470.3,3470.2,6.4435]
[1735815020162,0.4433,3471.1,3471.0,0.28844]
[1735815020465,0.4433,3471.1,3471.0,3.49624]
[1735815020659,0.4433,3471.1,3471.0,3.2078]
[1735815021661,0.4433,3471.1,3470.5,0.28848]
[1735815021662,0.28844,3471.0,3470.5,0.28848]
[1735815021859,0.28844,3471.0,3470.2,2.04272054]
[1735815021860,0.4338,3471.0,3470.2,2.04272054]
[1735815022061,0.28848,3470.5,3470.1,3.2078]
[1735815022265,0.8837,3470.4,3470.3,0.2885]
[1735815022659,0.4338,3470.4,3470.3,0.2885]
[1735815024358,0.4338,3470.4,3470.1,3.2078]
[1735815024560,0.7515,3470.3,3469.8,0.28853]
[1735815024754,0.4196,3470.2,3469.8,0.28853]
[1735815024962,2.46232054,3470.2,3469.7,3.2078]
[1735815025269,0.28855,3469.7,3469.3,7.7196642]
[1735815025465,0.28855,3469.7,3469.3,3.2078]
[1735815025961,0.28855,3469.7,3469.3,3.49637]
[1735815026159,0.28855,3469.7,3469.3,3.49638]
[1735815026363,0.52590567,3469.8,3469.5,0.28856]
[1735815026565,0.52590567,3469.8,3469.7,0.28855]
[1735815026765,8.43184417,3469.8,3469.7,0.28855]
[1735815027462,7.9059385,3469.8,3469.7,0.28855]
[1735815027759,3.2078,3469.9,3469.4,2.04272054]
[1735815027960,7.9059385,3470.1,3469.5,0.72141]
[1735815028263,7.9059385,3470.1,3470.0,0.28852]
[1735815028464,8.88199538,3470.1,3470.0,0.28852]
[1735815028764,0.97605688,3470.1,3470.0,0.28852]
[1735815029170,0.97605688,3470.1,3469.9,0.28852]
[1735815030466,0.97605688,3470.1,3469.4,2.04272054]
[1735815030762,0.97605688,3470.1,3469.2,0.4414]
[1735815030763,0.4506,3470.1,3470.0,0.28852]
[1735815031470,0.4196,3470.2,3470.1,0.28851]
[1735815034162,0.4196,3470.2,3470.0,0.28852]
[1735815034373,0.4196,3470.2,3469.7,3.2078]
[1735815034566,0.28852,3470.1,3469.7,3.49634]
[1735815034771,0.28852,3470.1,3469.7,0.28854]